lending/lending_fUSD_20250819
["ID","MTS","AMOUNT","RATE_DAILY","PERIOD"]
[380278313,1755631183596,-2003.15,0.00025739,30]
[380278314,1755631183680,-1357.73,0.00025739,30]
[380278315,1755631183763,-3458.05,0.00025739,30]
[380278316,1755631183850,-1487.81,0.00025739,30]
[380278317,1755631183934,-400.0,0.00025739,30]
[380278318,1755631184018,-400.0,0.00025739,30]
[380278319,1755631184106,-4233.21,0.00025739,30]
[380278320,1755631184195,-1146.31,0.00025739,30]
[380278321,1755631184281,-400.0,0.00025739,30]
[380278322,1755631184369,-1420.57,0.00025739,30]
[380278323,1755631184456,-2399.65,0.00025739,30]
[380278324,1755631184539,-5837.98,0.00025739,30]
[380278325,1755631184698,-400.0,0.00025739,30]
[380278326,1755631184788,-8152.85,0.00025739,30]
[380278327,1755631184876,-8014.73,0.00025739,30]
[380278328,1755631184962,-3351.12,0.00025739,30]
[380278329,1755631185050,-444.69,0.00025739,30]
[380278330,1755631185141,-713.75,0.00025739,30]
[380278331,1755631185232,-400.0,0.00025739,30]
[380278332,1755631185320,-4699.45,0.00025739,30]
[380278333,1755631185412,-840.72,0.00025739,30]
[380278334,1755631185499,-5044.7,0.00025739,30]
[380278335,1755631185584,-3116.05,0.00025739,30]
[380278336,1755631185667,-2077.84,0.00025739,30]
[380278337,1755631185751,-755.9,0.00025739,30]
[380278338,1755631185835,-3767.8,0.00025739,30]
[380278339,1755631185918,-400.0,0.00025739,30]
[380278340,1755631186001,-400.0,0.00025739,30]
[380278341,1755631186087,-1623.73,0.00025739,30]
[380278342,1755631186173,-630.29,0.00025739,30]
[380278343,1755631186261,-458.85,0.00025739,30]
[380278344,1755631186345,-1621.47,0.00025739,30]
[380278345,1755631186430,-665.7,0.00025739,30]
[380278346,1755631186513,-7442.7,0.00025739,30]
[380278347,1755631186602,-1470.22,0.00025739,30]
[380278348,1755631186685,-3397.55,0.00025739,30]
[380278349,1755631186769,-400.0,0.00025739,30]
[380278350,1755631186852,-500.0,0.00025754,30]
[380278351,1755631186937,-511.0,0.00025754,30]
[380278352,1755631187024,-500.0,0.00025754,30]
[380278353,1755631187112,-150.0,0.00026,30]
[380278354,1755631187198,-2000.0,0.00026,120]
[380278355,1755631187286,-513.127264,0.00026,120]
[380278356,1755631187372,-500.0,0.00026,120]
[380278357,1755631187455,-400.0,0.00026013,30]
[380278358,1755631187536,-424.48,0.00026013,30]
[380278359,1755631187616,-573.46,0.00026013,30]
[380278360,1755631187695,-150.44962863,0.00026013,30]
[380278361,1755631187775,-1099.82,0.00026013,30]
[380278362,1755631187859,-400.0,0.00026013,30]
[380278363,1755631187942,-1032.27,0.00026013,30]
[380278364,1755631188027,-405.59,0.00026013,30]
[380278365,1755631188113,-2773.84,0.00026013,30]
[380278366,1755631188203,-2616.85,0.00026013,30]
[380278367,1755631188292,-569.65,0.00026013,30]
[380278368,1755631188383,-609.41,0.00026013,30]
[380278369,1755631188470,-2291.88,0.00026013,30]
[380278370,1755631188554,-1113.47,0.00026013,30]
[380278371,1755631188637,-1609.3,0.00026013,30]
[380278372,1755631188720,-1375.63,0.00026013,30]
[380278373,1755631188804,-2391.62,0.00026013,30]
[380278374,1755631188892,-567.71,0.00026013,30]
[380278375,1755631188977,-976.66,0.00026013,30]
[380278376,1755631189061,-444.55,0.00026013,30]
[380278377,1755631189146,-400.0,0.00026013,30]
[380278378,1755631189234,-655.88,0.00026013,30]
[380278379,1755631189323,-400.0,0.00026013,30]
[380278380,1755631189412,-1066.76,0.00026013,30]
[380278381,1755631189497,-750.6,0.00026013,30]
[380278382,1755631189582,-400.0,0.00026013,30]
[380278383,1755631189666,-983.97,0.00026013,30]
[380278384,1755631189750,-1275.26,0.00026013,30]
[380278385,1755631189835,-475.91,0.00026013,30]
[380278386,1755631189918,-2197.7,0.00026013,30]
[380278387,1755631190000,-441.25,0.00026013,30]
[380278388,1755631190085,-400.0,0.00026013,30]
[380278389,1755631190174,-400.0,0.00026013,30]
[380278390,1755631190260,-400.0,0.00026013,30]
[380278391,1755631190348,-514.92,0.00026013,30]
[380278392,1755631190436,-400.0,0.00026013,30]
[380278393,1755631190521,-400.0,0.00026013,30]
[380278394,1755631190617,-633.48,0.00026013,30]
[380278395,1755631190701,-400.0,0.00026013,30]
[380278396,1755631190789,-514.84,0.00026013,30]
[380278397,1755631190878,-680.06,0.00026013,30]
[380278398,1755631190967,-2380.79,0.00026013,30]
[380278399,1755631191052,-2214.91,0.00026013,30]
[380278400,1755631191141,-2318.11,0.00026013,30]
[380278401,1755631191230,-624.94,0.00026013,30]
[380278402,1755631191317,-480.84,0.00026013,30]
[380278403,1755631191405,-457.25,0.00026013,30]
[380278404,1755631191490,-600.44,0.00026013,30]
[380278405,1755631191574,-840.02,0.00026013,30]
[380278406,1755631191656,-1691.99,0.00026013,30]
[380278407,1755631191744,-1037.15,0.00026013,30]
[380278408,1755631191828,-178.31546328,0.00026013,30]
[380278409,1755631191912,-400.0,0.00026013,30]
[380278410,1755631191995,-513.97,0.00026013,30]
[380278411,1755631192082,-933.24,0.00026013,30]
[380278412,1755631192174,-217.77691257,0.00026013,30]
[380278413,1755631192260,-421.43,0.00026013,30]
[380278414,1755631192346,-674.85,0.00026013,30]
[380278415,1755631192431,-925.02,0.00026013,30]
[380278416,1755631192514,-2152.71,0.00026013,30]
[380278417,1755631192599,-400.0,0.00026013,30]
[380278418,1755631192685,-1838.62,0.00026013,30]
[380278419,1755631193032,-1032.92,0.00026013,30]
[380278420,1755631193124,-618.96,0.00026013,30]
[380278421,1755631193216,-2177.09,0.00026013,30]
[380278422,1755631193303,-1491.89,0.00026013,30]
[380278423,1755631193395,-400.0,0.00026013,30]
[380278424,1755631193480,-400.0,0.00026013,30]
[380278425,1755631193563,-521.21,0.00026013,30]
[380278426,1755631193645,-808.44,0.00026013,30]
[380278427,1755631193727,-741.66,0.00026013,30]
[380278428,1755631193808,-400.0,0.00026013,30]
[380278429,1755631193890,-400.0,0.00026013,30]
[380278430,1755631193971,-400.0,0.00026013,30]
[380278431,1755631194054,-520.65,0.00026013,30]
[380278432,1755631194138,-759.93,0.00026013,30]
[380278433,1755631194223,-400.0,0.00026013,30]
[380278434,1755631194310,-1990.94,0.00026013,30]
[380278435,1755631194398,-400.0,0.00026013,30]
[380278436,1755631194484,-400.0,0.00026013,30]
[380278437,1755631194567,-1171.85,0.00026013,30]
[380278438,1755631194648,-400.0,0.00026013,30]
[380278439,1755631194731,-2003.39,0.00026013,30]
[380278440,1755631194812,-400.0,0.00026013,30]
[380278441,1755631194894,-400.0,0.00026013,30]
[380278442,1755631194980,-400.0,0.00026013,30]
[380278443,1755631195070,-727.99,0.00026013,30]
[380278444,1755631195175,-1683.21,0.00026013,30]
[380278445,1755631195265,-721.89,0.00026013,30]
[380278446,1755631195355,-933.6,0.00026013,30]
[380278447,1755631195443,-1540.32,0.00026013,30]
[380278448,1755631195530,-667.4,0.00026013,30]
[380278449,1755631195618,-1549.09,0.00026013,30]
[380278450,1755631195704,-182.86929481,0.00026013,30]
[380278451,1755631195797,-447.13,0.00026013,30]
[380278452,1755631195884,-400.0,0.00026013,30]
[380278453,1755631195972,-400.0,0.00026013,30]
[380278454,1755631196062,-834.9,0.00026013,30]
[380278455,1755631196152,-2463.0,0.00026013,30]
[380278456,1755631196246,-400.0,0.00026013,30]
[380278457,1755631196342,-1180.21,0.00026013,30]
[380278458,1755631196431,-2651.29,0.00026013,30]
[380278459,1755631196513,-2251.53,0.00026013,30]
[380278460,1755631196595,-1354.08,0.00026013,30]
[380278461,1755631196677,-476.92,0.00026013,30]
[380278462,1755631196756,-400.0,0.00026013,30]
[380278463,1755631196836,-1498.84,0.00026013,30]
[380278464,1755631196921,-1077.46,0.00026013,30]
[380278465,1755631197000,-893.12,0.00026013,30]
[380278466,1755631197085,-400.0,0.00026013,30]
[380278467,1755631197178,-994.07,0.00026013,30]
[380278468,1755631197266,-1190.15,0.00026013,30]
[380278469,1755631197355,-400.0,0.00026013,30]
[380278470,1755631197440,-400.0,0.00026013,30]
[380278471,1755631197525,-1019.51,0.00026013,30]
[380278472,1755631197611,-400.0,0.00026013,30]
[380278473,1755631197693,-477.1,0.00026013,30]
[380278474,1755631197775,-1865.24,0.00026013,30]
[380278475,1755631197860,-947.97,0.00026013,30]
[380278476,1755631197944,-400.0,0.00026013,30]
[380278477,1755631198026,-400.0,0.00026013,30]
[380278478,1755631198112,-437.88,0.00026013,30]
[380278479,1755631198200,-400.0,0.00026013,30]
[380278480,1755631198289,-400.0,0.00026013,30]
[380278481,1755631198376,-1607.24,0.00026013,30]
[380278482,1755631198465,-482.8,0.00026013,30]
[380278483,1755631198550,-400.0,0.00026013,30]
[380278484,1755631198634,-1008.25,0.00026013,30]
[380278485,1755631198718,-400.0,0.00026013,30]
[380278486,1755631198802,-400.0,0.00026013,30]
[380278487,1755631198885,-411.04,0.00026013,30]
[380278488,1755631198969,-438.9,0.00026013,30]
[380278489,1755631199053,-2238.16,0.00026013,30]
[380278490,1755631199134,-400.0,0.00026013,30]
[380278491,1755631199222,-698.53,0.00026013,30]
[380278492,1755631199312,-605.66,0.00026013,30]
[380278493,1755631199398,-400.0,0.00026013,30]
[380278494,1755631199483,-461.41,0.00026013,30]
[380278495,1755631199567,-1632.1,0.00026013,30]
[380278496,1755631199652,-579.14,0.00026013,30]
[380278497,1755631199738,-400.0,0.00026013,30]
[380278498,1755631199822,-400.0,0.00026013,30]
[380278499,1755631199906,-400.0,0.00026013,30]
[380278500,1755631199989,-400.0,0.00026013,30]
[380278501,1755631200079,-400.0,0.00026013,30]
[380278502,1755631200173,-1825.28,0.00026013,30]
[380278503,1755631200268,-1523.06,0.00026013,30]
[380278504,1755631200729,-400.0,0.00026013,30]
[380278505,1755631200829,-400.0,0.00026013,30]
[380278506,1755631200915,-408.97,0.00026013,30]
[380278507,1755631201007,-403.44,0.00026013,30]
[380278508,1755631201094,-400.0,0.00026013,30]
[380278509,1755631201183,-445.03,0.00026013,30]
[380278510,1755631201271,-400.0,0.00026013,30]
[380278511,1755631201359,-1358.16,0.00026013,30]
[380278512,1755631201447,-410.03,0.00026013,30]
[380278513,1755631201532,-400.0,0.00026013,30]
[380278514,1755631201617,-912.76,0.00026013,30]
[380278515,1755631201704,-1223.73,0.00026013,30]
[380278516,1755631201789,-964.55,0.00026013,30]
[380278517,1755631201873,-907.48,0.00026013,30]
[380278518,1755631201958,-1038.22,0.00026013,30]
[380278519,1755631202042,-343.15072144,0.00026013,30]
[380278520,1755631202127,-400.0,0.00026013,30]
[380278521,1755631202214,-2133.63,0.00026013,30]
[380278522,1755631202301,-406.02,0.00026013,30]
[380278523,1755631202389,-960.18,0.00026013,30]
[380278524,1755631202473,-1003.4,0.00026013,30]
[380278525,1755631202570,-416.9,0.00026013,30]
[380278526,1755631202664,-479.67,0.00026013,30]
[380278527,1755631202754,-1658.41,0.00026013,30]
[380278528,1755631202839,-400.0,0.00026013,30]
[380278529,1755631202922,-672.86,0.00026013,30]
[380278530,1755631203004,-1715.1,0.00026013,30]
[380278531,1755631203107,-400.0,0.00026013,30]
[380278532,1755631203207,-503.65,0.00026013,30]
[380278533,1755631203308,-400.0,0.00026013,30]
[380278534,1755631203412,-1249.51,0.00026013,30]
[380278535,1755631203527,-400.0,0.00026013,30]
[380278536,1755631203631,-557.23,0.00026013,30]
[380278537,1755631203732,-745.22,0.00026013,30]
[380278538,1755631203840,-503.04,0.00026013,30]
[380278539,1755631203947,-400.0,0.00026013,30]
[380278540,1755631204059,-804.51,0.00026013,30]
[380278541,1755631204168,-392.47864557,0.00026013,30]
[380278542,1755631204280,-385.39925231,0.00026013,30]
[380278543,1755631204394,-466.38,0.00026013,30]
[380278544,1755631204509,-1250.28,0.00026013,30]
[380278545,1755631204619,-866.17,0.00026013,30]
[380278546,1755631204747,-664.23,0.00026013,30]
[380278547,1755631204862,-2158.15,0.00026013,30]
[380278548,1755631204972,-509.99,0.00026013,30]
[380278549,1755631205078,-481.8,0.00026013,30]
[380278550,1755631205184,-400.0,0.00026013,30]
[380278551,1755631205295,-400.0,0.00026013,30]
[380278552,1755631205400,-400.0,0.00026013,30]
[380278553,1755631205501,-400.0,0.00026013,30]
[380278554,1755631205606,-413.19,0.00026013,30]
[380278555,1755631205708,-400.0,0.00026013,30]
[380278556,1755631205812,-400.0,0.00026013,30]
[380278557,1755631205915,-855.55,0.00026013,30]
[380278558,1755631206022,-601.39,0.00026013,30]
[380278559,1755631206125,-400.0,0.00026013,30]
[380278560,1755631206231,-2280.39,0.00026013,30]
[380278561,1755631206336,-975.51,0.00026013,30]
[380278562,1755631206437,-400.0,0.00026013,30]
[380278563,1755631206536,-400.0,0.00026013,30]
[380278564,1755631206636,-1840.1,0.00026013,30]
[380278565,1755631206733,-400.0,0.00026013,30]
[380278566,1755631206829,-517.95,0.00026013,30]
[380278567,1755631206942,-1486.54,0.00026013,30]
[380278568,1755631207048,-2077.7,0.00026013,30]
[380278569,1755631207151,-400.0,0.00026013,30]
[380278570,1755631207252,-2093.14,0.00026013,30]
[380278571,1755631207476,-303.75383519,0.00026013,30]
[380278572,1755631207570,-790.95,0.00026013,30]
[380278573,1755631207667,-1801.97,0.00026013,30]
[380278574,1755631207768,-962.38,0.00026013,30]
[380278575,1755631207866,-1485.42,0.00026013,30]
[380278576,1755631207964,-400.0,0.00026013,30]
[380278577,1755631208060,-1374.41,0.00026013,30]
[380278578,1755631208174,-400.0,0.00026013,30]
[380278579,1755631208276,-400.0,0.00026013,30]
[380278580,1755631208391,-1008.89,0.00026013,30]
[380278581,1755631208495,-935.31,0.00026013,30]
[380278582,1755631208591,-400.0,0.00026013,30]
[380278583,1755631208687,-734.31,0.00026013,30]
[380278584,1755631208784,-400.0,0.00026013,30]
[380278585,1755631208885,-760.31,0.00026013,30]
[380278586,1755631208981,-543.43,0.00026013,30]
[380278587,1755631209077,-588.82,0.00026013,30]
[380278588,1755631209180,-498.35,0.00026013,30]
[380278589,1755631209284,-400.0,0.00026013,30]
[380278590,1755631209383,-400.0,0.00026013,30]
[380278591,1755631209484,-1209.49,0.00026013,30]
[380278592,1755631209583,-400.0,0.00026013,30]
[380278593,1755631209683,-1158.12,0.00026013,30]
[380278594,1755631209780,-845.97,0.00026013,30]
[380278595,1755631209877,-1453.42,0.00026013,30]
[380278596,1755631209975,-1268.36,0.00026013,30]
[380278597,1755631210074,-838.71,0.00026013,30]
[380278598,1755631210173,-400.0,0.00026013,30]
[380278599,1755631210278,-553.19,0.00026013,30]
[380278600,1755631210377,-400.0,0.00026013,30]
[380278601,1755631210474,-2377.86,0.00026013,30]
[380278602,1755631210573,-656.71,0.00026013,30]
[380278603,1755631210670,-1003.6,0.00026013,30]
[380278604,1755631210769,-575.64,0.00026013,30]
[380278605,1755631210864,-890.27,0.00026013,30]
[380278606,1755631210959,-400.0,0.00026013,30]
[380278607,1755631211057,-400.0,0.00026013,30]
[380278608,1755631211156,-887.1,0.00026013,30]
[380278609,1755631211257,-1586.0,0.00026013,30]
[380278610,1755631211356,-400.0,0.00026013,30]
[380278611,1755631211454,-665.78,0.00026013,30]
[380278612,1755631211549,-400.0,0.00026013,30]
[380278613,1755631211646,-468.86,0.00026013,30]
[380278614,1755631211759,-1245.26,0.00026013,30]
[380278615,1755631211857,-400.0,0.00026013,30]
[380278616,1755631211951,-1571.68,0.00026013,30]
[380278617,1755631212047,-400.0,0.00026013,30]
[380278618,1755631212146,-400.0,0.00026013,30]
[380278619,1755631212245,-400.0,0.00026013,30]
[380278620,1755631212345,-734.99,0.00026013,30]
[380278621,1755631212443,-400.0,0.00026013,30]
[380278622,1755631212539,-1550.01,0.00026013,30]
[380278623,1755631212633,-953.11,0.00026013,30]
[380278624,1755631212726,-486.58,0.00026013,30]
[380278625,1755631212821,-400.0,0.00026013,30]
[380278626,1755631212914,-987.13,0.00026013,30]
[380278627,1755631213013,-713.66,0.00026013,30]
[380278628,1755631213110,-1769.53,0.00026013,30]
[380278629,1755631213210,-1151.9,0.00026013,30]
[380278630,1755631213309,-1484.23,0.00026013,30]
[380278631,1755631213410,-1462.98,0.00026013,30]
[380278632,1755631213520,-400.0,0.00026013,30]
[380278633,1755631213620,-400.0,0.00026013,30]
[380278634,1755631213715,-584.29,0.00026013,30]
[380278635,1755631213816,-400.0,0.00026013,30]
[380278636,1755631213912,-400.0,0.00026013,30]
[380278637,1755631214012,-1790.8,0.00026013,30]
[380278638,1755631214111,-1524.7,0.00026013,30]
[380278639,1755631214208,-644.07,0.00026013,30]
[380278640,1755631214307,-1873.68,0.00026013,30]
[380278641,1755631214402,-400.0,0.00026013,30]
[380278642,1755631214497,-1158.18,0.00026013,30]
[380278643,1755631214592,-323.93869359,0.00026013,30]
[380278644,1755631214691,-1809.01,0.00026013,30]
[380278645,1755631214789,-400.0,0.00026013,30]
[380278646,1755631214888,-846.47,0.00026013,30]
[380278647,1755631214989,-490.99,0.00026013,30]
[380278648,1755631215087,-400.0,0.00026013,30]
[380278649,1755631215189,-400.0,0.00026013,30]
[380278650,1755631215289,-1217.18,0.00026013,30]
[380278651,1755631215396,-1996.2,0.00026013,30]
[380278652,1755631215494,-593.75,0.00026013,30]
[380278653,1755631215595,-400.0,0.00026013,30]
[380278654,1755631215691,-861.27,0.00026013,30]
[380278655,1755631215790,-1189.14,0.00026013,30]
[380278656,1755631215888,-400.0,0.00026013,30]
[380278657,1755631215984,-422.52,0.00026013,30]
[380278658,1755631216085,-400.0,0.00026013,30]
[380278659,1755631216187,-831.55,0.00026013,30]
[380278660,1755631216287,-801.03,0.00026013,30]
[380278661,1755631216385,-1627.46,0.00026013,30]
[380278662,1755631216482,-669.09,0.00026013,30]
[380278663,1755631216587,-712.93,0.00026013,30]
[380278664,1755631216690,-400.0,0.00026013,30]
[380278665,1755631216785,-400.0,0.00026013,30]
[380278666,1755631217089,-666.25,0.00026013,30]
[380278667,1755631217189,-739.46,0.00026013,30]
[380278668,1755631217289,-1590.45,0.00026013,30]
[380278669,1755631217386,-575.07,0.00026013,30]
[380278670,1755631217485,-498.22,0.00026013,30]
[380278671,1755631217584,-400.0,0.00026013,30]
[380278672,1755631217686,-400.0,0.00026013,30]
[380278673,1755631217786,-590.81,0.00026013,30]
[380278674,1755631217885,-752.39,0.00026013,30]
[380278675,1755631217986,-463.19,0.00026013,30]
[380278676,1755631218092,-400.0,0.00026013,30]
[380278677,1755631218192,-400.0,0.00026013,30]
[380278678,1755631218290,-400.0,0.00026013,30]
[380278679,1755631218389,-1227.79,0.00026013,30]
[380278680,1755631218489,-400.0,0.00026013,30]
[380278681,1755631218588,-400.0,0.00026013,30]
[380278682,1755631218687,-944.83,0.00026013,30]
[380278683,1755631218786,-400.0,0.00026013,30]
[380278684,1755631218888,-400.0,0.00026013,30]
[380278685,1755631218987,-1252.64,0.00026013,30]
[380278686,1755631219085,-1348.48,0.00026013,30]
[380278687,1755631219190,-2011.64,0.00026013,30]
[380278688,1755631219295,-400.0,0.00026013,30]
[380278689,1755631219399,-771.77,0.00026013,30]
[380278690,1755631219501,-400.0,0.00026013,30]
[380278691,1755631219602,-1004.69,0.00026013,30]
[380278692,1755631219701,-400.0,0.00026013,30]
[380278693,1755631219797,-400.0,0.00026013,30]
[380278694,1755631219897,-759.13,0.00026013,30]
[380278695,1755631219996,-1766.6,0.00026013,30]
[380278696,1755631220095,-764.46,0.00026013,30]
[380278697,1755631220198,-1321.22,0.00026013,30]
[380278698,1755631220296,-400.0,0.00026013,30]
[380278699,1755631220396,-574.26,0.00026013,30]
[380278700,1755631220496,-414.53,0.00026013,30]
[380278701,1755631220593,-1609.98,0.00026013,30]
[380278702,1755631220691,-1988.32,0.00026013,30]
[380278703,1755631220788,-400.0,0.00026013,30]
[380278704,1755631220890,-400.0,0.00026013,30]
[380278705,1755631220984,-400.0,0.00026013,30]
[380278706,1755631221081,-633.22,0.00026013,30]
[380278707,1755631221179,-1129.6,0.00026013,30]
[380278708,1755631221282,-400.0,0.00026013,30]
[380278709,1755631221380,-1389.72,0.00026013,30]
[380278710,1755631221478,-704.57,0.00026013,30]
[380278711,1755631221577,-1626.22,0.00026013,30]
[380278712,1755631221680,-402.52,0.00026013,30]
[380278713,1755631221780,-400.0,0.00026013,30]
[380278714,1755631221880,-758.46,0.00026013,30]
[380278715,1755631221983,-646.97,0.00026013,30]
[380278716,1755631222084,-1978.37,0.00026013,30]
[380278717,1755631222189,-1713.52,0.00026013,30]
[380278718,1755631222290,-988.17,0.00026013,30]
[380278719,1755631222397,-452.3,0.00026013,30]
[380278720,1755631222501,-1178.32,0.00026013,30]
[380278721,1755631222600,-474.04,0.00026013,30]
[380278722,1755631222700,-400.0,0.00026013,30]
[380278723,1755631222801,-400.0,0.00026013,30]
[380278724,1755631222902,-843.54,0.00026013,30]
[380278725,1755631223004,-400.0,0.00026013,30]
[380278726,1755631223104,-2339.85,0.00026013,30]
[380278727,1755631223206,-400.0,0.00026013,30]
[380278728,1755631223308,-1431.42,0.00026013,30]
[380278729,1755631223411,-400.0,0.00026013,30]
[380278730,1755631223510,-1879.73,0.00026013,30]
[380278731,1755631223607,-400.0,0.00026013,30]
[380278732,1755631223705,-400.0,0.00026013,30]
[380278733,1755631223808,-1003.58,0.00026013,30]
[380278734,1755631223906,-667.84,0.00026013,30]
[380278735,1755631224008,-781.97,0.00026013,30]
[380278736,1755631224108,-417.13491352,0.00026013,30]
[380278737,1755631224209,-657.01,0.00026013,30]
[380278738,1755631224310,-400.0,0.00026013,30]
[380278739,1755631224415,-400.0,0.00026013,30]
[380278740,1755631224519,-1626.0,0.00026013,30]
[380278741,1755631224620,-400.0,0.00026013,30]
[380278742,1755631224720,-762.72,0.00026013,30]
[380278743,1755631224820,-400.0,0.00026013,30]
[380278744,1755631224920,-812.96,0.00026013,30]
[380278745,1755631225022,-812.84,0.00026013,30]
[380278746,1755631225124,-400.0,0.00026013,30]
[380278747,1755631225227,-353.97822583,0.00026013,30]
[380278748,1755631225328,-400.0,0.00026013,30]
[380278749,1755631225430,-400.0,0.00026013,30]
[380278750,1755631225534,-912.15,0.00026013,30]
[380278751,1755631225969,-1867.16,0.00026013,30]
[380278752,1755631226069,-927.26,0.00026013,30]
[380278753,1755631226169,-400.0,0.00026013,30]
[380278754,1755631226272,-1264.15,0.00026013,30]
[380278755,1755631226374,-1147.83,0.00026013,30]
[380278756,1755631226476,-822.45,0.00026013,30]
[380278757,1755631226577,-2642.11,0.00026013,30]
[380278758,1755631226683,-400.0,0.00026013,30]
[380278759,1755631226785,-437.64,0.00026013,30]
[380278760,1755631226884,-400.0,0.00026013,30]
[380278761,1755631226986,-854.72,0.00026013,30]
[380278762,1755631227091,-512.08,0.00026013,30]
[380278763,1755631227196,-531.2,0.00026013,30]
[380278764,1755631227300,-842.32,0.00026013,30]
[380278765,1755631227401,-1920.95,0.00026013,30]
[380278766,1755631227503,-1843.66,0.00026013,30]
[380278767,1755631227602,-589.48,0.00026013,30]
[380278768,1755631227700,-1357.11,0.00026013,30]
[380278769,1755631227801,-1090.36,0.00026013,30]
[380278770,1755631227904,-400.0,0.00026013,30]
[380278771,1755631228005,-733.36,0.00026013,30]
[380278772,1755631228110,-2339.92,0.00026013,30]
[380278773,1755631228217,-400.0,0.00026013,30]
[380278774,1755631228322,-530.76,0.00026013,30]
[380278775,1755631228429,-1713.64,0.00026013,30]
[380278776,1755631228537,-400.0,0.00026013,30]
[380278777,1755631228641,-400.0,0.00026013,30]
[380278778,1755631228747,-594.02,0.00026013,30]
[380278779,1755631228849,-2161.34,0.00026013,30]
[380278780,1755631228956,-785.37,0.00026013,30]
[380278781,1755631229061,-925.07,0.00026013,30]
[380278782,1755631229164,-400.0,0.00026013,30]
[380278783,1755631229269,-1533.15,0.00026013,30]
[380278784,1755631229373,-1481.14,0.00026013,30]
[380278785,1755631229475,-400.0,0.00026013,30]
[380278786,1755631229579,-400.0,0.00026013,30]
[380278787,1755631229685,-424.97,0.00026013,30]
[380278788,1755631229786,-2049.37,0.00026013,30]
[380278789,1755631229886,-400.0,0.00026013,30]
[380278790,1755631229985,-535.14,0.00026013,30]
[380278791,1755631230085,-2172.05,0.00026013,30]
[380278792,1755631230189,-400.0,0.00026013,30]
[380278793,1755631230291,-1532.6,0.00026013,30]
[380278794,1755631230391,-831.55,0.00026013,30]
[380278795,1755631230500,-853.09,0.00026013,30]
[380278796,1755631230630,-1512.48,0.00026013,30]
[380278798,1755631230761,-400.0,0.00026013,30]
[380278799,1755631230860,-757.23,0.00026013,30]
[380278800,1755631230959,-834.74,0.00026013,30]
[380278802,1755631231061,-528.08,0.00026013,30]
[380278803,1755631231161,-400.0,0.00026013,30]
[380278804,1755631231261,-1466.98,0.00026013,30]
[380278806,1755631231359,-1667.74,0.00026013,30]
[380278807,1755631231460,-851.95,0.00026013,30]
[380278808,1755631231557,-400.0,0.00026013,30]
[380278809,1755631231655,-585.37,0.00026013,30]
[380278810,1755631231754,-1678.23,0.00026013,30]
[380278811,1755631231854,-500.95,0.00026013,30]
[380278812,1755631231955,-400.0,0.00026013,30]
[380278813,1755631232063,-990.17,0.00026013,30]
[380278814,1755631232163,-1498.02,0.00026013,30]
[380278815,1755631232261,-414.92,0.00026013,30]